fUST/lending_fUST_20250806
["ID","MTS","AMOUNT","RATE_DAILY","PERIOD"]
[377505138,1754433045586,-460.0,0.00028219,2]
[377505139,1754433045595,-541.91,0.00028219,2]
[377505140,1754433045604,-460.0,0.00028219,2]
[377505141,1754433045614,-460.0,0.00028219,2]
[377505142,1754433045623,-460.0,0.00028219,2]
[377505143,1754433045633,-771.88,0.00028219,2]
[377505144,1754433045643,-460.0,0.00028219,2]
[377505145,1754433045652,-517.99,0.00028219,2]
[377505146,1754433045662,-460.0,0.00028219,2]
[377505147,1754433045672,-460.0,0.00028219,2]
[377505148,1754433045682,-1442.25,0.00028219,2]
[377505149,1754433045692,-460.0,0.00028219,2]
[377505150,1754433045702,-1733.02,0.00028219,2]
[377505151,1754433045711,-554.44,0.00028219,2]
[377505152,1754433045721,-460.0,0.00028219,2]
[377505153,1754433045730,-589.21,0.00028219,2]
[377505154,1754433045740,-1173.91,0.00028219,2]
[377505155,1754433045749,-460.0,0.00028219,2]
[377505156,1754433045760,-618.1,0.00028219,2]
[377505157,1754433045772,-4075.74,0.00028219,2]
[377505158,1754433045781,-684.05,0.00028219,2]
[377505159,1754433045793,-457.76170856,0.00028219,2]
[377505160,1754433045804,-986.11,0.00028219,2]
[377505161,1754433045816,-964.04,0.00028219,2]
[377505162,1754433045827,-893.8,0.00028219,2]
[377505163,1754433045838,-460.0,0.00028219,2]
[377505164,1754433045848,-460.0,0.00028219,2]
[377505165,1754433045857,-713.43,0.00028219,2]
[377505166,1754433045869,-864.07,0.00028219,2]
[377505167,1754433045881,-451.45536678,0.00028219,2]
[377505168,1754433045891,-460.0,0.00028219,2]
[377505169,1754433045900,-460.0,0.00028219,2]
[377505170,1754433045910,-460.0,0.00028219,2]
[377505171,1754433045920,-460.0,0.00028219,2]
[377505172,1754433045930,-657.22,0.00028219,2]
[377505173,1754433045939,-678.76,0.00028219,2]
[377505174,1754433045949,-1423.03,0.00028219,2]
[377505175,1754433045959,-945.17,0.00028219,2]
[377505176,1754433045968,-460.0,0.00028219,2]
[377505177,1754433045978,-460.0,0.00028219,2]
[377505178,1754433045987,-1000.0,0.00028221,5]
[377505179,1754433045997,-650.83960042,0.00028221,5]
[377505180,1754433046007,-153.0185066,0.00028221,5]
[377505181,1754433046018,-500.82773618,0.00028273,5]
[377505182,1754433046028,-12986.74201921,0.000283,9]
[377505183,1754433046038,-160.0,0.00028386,2]
[377505184,1754433046049,-12655.02535889,0.00028386,2]
[377505185,1754433046059,-461.15695721,0.00028389,2]
[377505186,1754433046070,-160.0,0.00028389,2]
[377505187,1754433046081,-215.21874788,0.00028389,2]
[377505188,1754433046091,-527.3554621,0.00028389,2]
[377505189,1754433046101,-160.0,0.00028389,2]
[377505190,1754433046112,-312.16666667,0.00028389,2]
[377505191,1754433046123,-160.0,0.00028389,2]
[377505192,1754433046135,-160.0,0.00028389,2]
[377505193,1754433046144,-160.0,0.00028389,2]
[377505194,1754433046154,-216.4206905,0.00028389,2]
[377505195,1754433046163,-231.72586818,0.00028389,2]
[377505197,1754433046173,-160.0,0.00028389,2]
[377505199,1754433046184,-1000.0,0.00028468,2]
[377505201,1754433046193,-1143.90803113,0.00028468,2]
[377505203,1754433046203,-1500.0,0.00028468,5]
[377505205,1754433046212,-200.0,0.00028473,5]
[377505208,1754433046222,-204.2,0.00028481,15]
[377505210,1754433046232,-460.0,0.00028493,2]
[377505211,1754433046241,-500.0,0.00028493,2]
[377505212,1754433046251,-453.48631578,0.00028493,2]
[377505213,1754433046261,-460.0,0.00028493,2]
[377505214,1754433046270,-460.0,0.00028493,2]
[377505215,1754433046280,-921.54,0.00028493,2]
[377505216,1754433046289,-460.0,0.00028493,2]
[377505217,1754433046299,-1015.16,0.00028493,2]
[377505218,1754433046308,-460.0,0.00028493,2]
[377505219,1754433046318,-483.99,0.00028493,2]
[377505220,1754433046327,-628.9,0.00028493,2]
[377505221,1754433046336,-984.13,0.00028493,2]
[377505222,1754433046345,-706.66,0.00028493,2]
[377505223,1754433046355,-481.81223014,0.00028493,2]
[377505224,1754433046364,-446.61365351,0.00028493,2]
[377505225,1754433046373,-460.0,0.00028493,2]
[377505226,1754433046382,-1411.39,0.00028493,2]
[377505227,1754433046391,-390.14652271,0.00028493,2]
[377505228,1754433046401,-460.0,0.00028493,2]
[377505229,1754433046410,-460.0,0.00028493,2]
[377505230,1754433046419,-1323.3,0.00028493,2]
[377505231,1754433046428,-52590.9,0.00028493,2]
[377505232,1754433046438,-460.0,0.00028493,2]
[377505233,1754433046447,-460.0,0.00028493,2]
[377505234,1754433046456,-460.0,0.00028493,2]
[377505235,1754433046465,-480.12,0.00028493,2]
[377505236,1754433046474,-460.0,0.00028493,2]
[377505237,1754433046483,-460.0,0.00028493,2]
[377505238,1754433046493,-460.0,0.00028493,2]
[377505239,1754433046502,-460.0,0.00028493,2]
[377505240,1754433046511,-460.0,0.00028493,2]
[377505241,1754433046520,-460.0,0.00028493,2]
[377505242,1754433046530,-854.35,0.00028493,2]
[377505243,1754433046539,-659.7,0.00028493,2]
[377505244,1754433046548,-460.0,0.00028493,2]
[377505245,1754433046557,-1159.34,0.00028493,2]
[377505246,1754433046566,-1164.38,0.00028493,2]
[377505247,1754433046576,-1010.68,0.00028493,2]
[377505248,1754433046585,-460.0,0.00028493,2]
[377505249,1754433046594,-460.0,0.00028493,2]
[377505250,1754433046603,-528.47362452,0.00028493,2]
[377505251,1754433046612,-368.10507367,0.00028493,2]
[377505252,1754433046622,-460.0,0.00028493,2]
[377505253,1754433046631,-460.0,0.00028493,2]
[377505254,1754433046640,-764.79,0.00028493,2]
[377505255,1754433046650,-1255.48,0.00028493,2]
[377505256,1754433046659,-447.26865115,0.00028493,2]
[377505257,1754433046668,-460.0,0.00028493,2]
[377505258,1754433046677,-504.96,0.00028493,2]
[377505259,1754433046687,-1681.81,0.00028493,2]
[377505260,1754433046696,-946.61,0.00028493,2]
[377505261,1754433046705,-666.64,0.00028493,2]
[377505262,1754433046714,-460.0,0.00028493,2]
[377505263,1754433046724,-912.94,0.00028493,2]
[377505265,1754433046733,-514.09,0.00028493,2]
[377505267,1754433046743,-460.0,0.00028493,2]
[377505269,1754433046752,-460.0,0.00028493,2]
[377505270,1754433046761,-460.0,0.00028493,2]
[377505272,1754433046770,-4946.19,0.00028493,2]
[377505274,1754433046780,-3308.08,0.00028493,2]
[377505276,1754433046790,-460.0,0.00028493,2]
[377505278,1754433046800,-639.11,0.00028493,2]
[377505280,1754433046810,-1892.37,0.00028493,2]
[377505287,1754433046859,-460.0,0.00028493,2]
[377505289,1754433046872,-1264.65,0.00028493,2]
[377505290,1754433046882,-460.0,0.00028493,2]
[377505291,1754433046891,-460.0,0.00028493,2]
[377505292,1754433046899,-460.0,0.00028493,2]
[377505293,1754433046908,-460.0,0.00028493,2]
[377505294,1754433046918,-474.2,0.00028493,2]
[377505295,1754433046927,-507.54,0.00028493,2]
[377505296,1754433046939,-460.0,0.00028493,2]
[377505297,1754433046948,-1981.91,0.00028493,2]
[377505298,1754433046957,-460.0,0.00028493,2]
[377505299,1754433046966,-541.91,0.00028493,2]
[377505300,1754433046975,-460.0,0.00028493,2]
[377505301,1754433046984,-460.0,0.00028493,2]
[377505302,1754433046992,-460.0,0.00028493,2]
[377505303,1754433047001,-771.88,0.00028493,2]
[377505304,1754433047010,-460.0,0.00028493,2]
[377505305,1754433047019,-517.99,0.00028493,2]
[377505306,1754433047028,-460.0,0.00028493,2]
[377505307,1754433047037,-460.0,0.00028493,2]
[377505308,1754433047047,-1442.25,0.00028493,2]
[377505309,1754433047055,-302.58,0.00028493,2]
[377505310,1754433047064,-1733.02,0.00028493,2]
[377505311,1754433047073,-554.44,0.00028493,2]
[377505312,1754433047082,-460.0,0.00028493,2]
[377505313,1754433047091,-589.21,0.00028493,2]
[377505314,1754433047100,-1173.91,0.00028493,2]
[377505315,1754433047109,-618.1,0.00028493,2]
[377505316,1754433047117,-4075.74,0.00028493,2]
[377505317,1754433047126,-684.05,0.00028493,2]
[377505318,1754433047135,-986.11,0.00028493,2]
[377505319,1754433047144,-964.04,0.00028493,2]
[377505320,1754433047153,-893.8,0.00028493,2]
[377505321,1754433047162,-460.0,0.00028493,2]
[377505322,1754433047171,-460.0,0.00028493,2]
[377505323,1754433047180,-713.43,0.00028493,2]
[377505324,1754433047189,-864.07,0.00028493,2]
[377505325,1754433047198,-460.0,0.00028493,2]
[377505326,1754433047207,-460.0,0.00028493,2]
[377505327,1754433047215,-460.0,0.00028493,2]
[377505328,1754433047224,-460.0,0.00028493,2]
[377505329,1754433047233,-657.22,0.00028493,2]
[377505330,1754433047242,-678.76,0.00028493,2]
[377505331,1754433047251,-1423.03,0.00028493,2]
[377505332,1754433047260,-460.0,0.00028493,2]
[377505333,1754433047269,-460.0,0.00028493,2]
[377505334,1754433047278,-150.47853833,0.00028521,5]
[377505335,1754433047287,-260.0,0.00028548,2]
[377505336,1754433047296,-204.2,0.00028581,15]
[377505337,1754433047306,-204.2,0.00028681,15]
[377505338,1754433047315,-1000.0,0.000287,6]
[377505339,1754433047323,-169.96313,0.00028743,2]
[377505340,1754433047332,-221.61954782,0.00028761,2]
[377505341,1754433047341,-460.0,0.00028767,2]
[377505342,1754433047350,-500.0,0.00028767,2]
[377505343,1754433047359,-460.0,0.00028767,2]
[377505344,1754433047367,-460.0,0.00028767,2]
[377505345,1754433047376,-921.54,0.00028767,2]
[377505346,1754433047385,-516.52770387,0.00028767,2]
[377505347,1754433047394,-1015.16,0.00028767,2]
[377505348,1754433047403,-460.0,0.00028767,2]
[377505349,1754433047411,-176.046735,0.00028767,2]
[377505350,1754433047420,-483.99,0.00028767,2]
[377505351,1754433047430,-628.9,0.00028767,2]
[377505352,1754433047438,-984.13,0.00028767,2]
[377505353,1754433047447,-706.66,0.00028767,2]
[377505354,1754433047456,-460.0,0.00028767,2]
[377505355,1754433047465,-1411.39,0.00028767,2]
[377505356,1754433047474,-460.0,0.00028767,2]
[377505357,1754433047484,-460.0,0.00028767,2]
[377505358,1754433047493,-1323.3,0.00028767,2]
[377505359,1754433047503,-52590.9,0.00028767,2]
[377505360,1754433047513,-460.0,0.00028767,2]
[377505361,1754433047522,-460.0,0.00028767,2]
[377505362,1754433047532,-460.0,0.00028767,2]
[377505363,1754433047541,-480.12,0.00028767,2]
[377505364,1754433047551,-460.0,0.00028767,2]
[377505365,1754433047560,-460.0,0.00028767,2]
[377505366,1754433047569,-460.0,0.00028767,2]
[377505367,1754433047578,-460.0,0.00028767,2]
[377505368,1754433047587,-460.0,0.00028767,2]
[377505369,1754433047596,-568.27527087,0.00028767,2]
[377505370,1754433047605,-854.35,0.00028767,2]
[377505371,1754433047614,-659.7,0.00028767,2]
[377505372,1754433047623,-460.0,0.00028767,2]
[377505373,1754433047632,-1164.38,0.00028767,2]
[377505374,1754433047641,-934.59142981,0.00028767,2]
[377505376,1754433047810,-224.74857019,0.00028767,2]
[377505377,1754433047820,-566.40473889,0.00028767,2]
[377505378,1754433047831,-444.27526111,0.00028767,2]
[377505379,1754433047840,-15.72473889,0.00028767,2]
[377505380,1754433048027,-460.0,0.00027397,2]
[377505381,1754433048038,-460.0,0.00027397,2]
[377505382,1754433048047,-260.9,0.00028493,2]
[377505383,1754433048214,-460.0,0.00027397,2]
[377505384,1754433048224,-460.0,0.00027671,2]
[377505385,1754433048234,-460.0,0.00027671,2]
[377505386,1754433048243,-379.66577727,0.00028493,2]
[377505387,1754433048515,-460.0,0.00027397,2]
[377505388,1754433048525,-510.88,0.00027397,2]
[377505389,1754433048534,-460.0,0.00027671,2]
[377505390,1754433048545,-460.0,0.00027945,2]
[377505391,1754433048555,-148.22,0.00028219,2]
[377505392,1754433048567,-311.78,0.00028219,2]
[377505393,1754433048577,-304.60422273,0.00028493,2]
[377505394,1754433048587,-444.27526111,0.00028767,2]
[377505395,1754433048596,-460.0,0.00028767,2]
[377505396,1754433048607,-1.54291406,0.00028767,2]
[377505397,1754433187146,1482.14812396,0.0002512,6]
[377505398,1754433205860,917.11012651,0.00031212,30]
[377505400,1754433446479,-160.0,0.00025056,2]
[377505401,1754433446508,-150.0,0.00025075,2]
[377505402,1754433619491,252.61831042,0.00024386,2]
[377505403,1754433620137,-203.28126122,0.0002504,2]
[377505404,1754433680328,-239.9,0.00024997,2]
[377505405,1754433683092,-182.76616839,0.00024997,2]
[377505406,1754433685319,-182.76616839,0.00024997,2]
[377505407,1754433688426,-182.76616839,0.00024997,2]
[377505408,1754433691554,285.08203711,0.00024462,5]
[377505409,1754433869403,188.14051071,0.00024453,5]
[377505410,1754433921138,381.000476,0.00023958,2]
[377505411,1754433921982,220.61490961,0.00024247,2]
[377505412,1754433947009,288.904507,0.00013699,2]
[377505413,1754433947118,288.904507,0.00020187,2]
[377505415,1754434151481,-179.483699,0.00024699,2]
[377505416,1754434153071,-199.82023762,0.00024699,2]
[377505417,1754434155237,-155.37,0.00024699,2]
[377505418,1754434157606,-181.99045276,0.00024642,2]
[377505419,1754434157631,-122.0825972,0.00024642,2]
[377505420,1754434159793,-59.90785553,0.00024642,2]
[377505421,1754434159821,-181.99045273,0.00024642,2]
[377505422,1754434159845,-43.43003347,0.00024643,2]
[377505423,1754434161485,-138.56041926,0.00024643,2]
[377505424,1754434161510,-34.5368852,0.00024699,2]
[377505425,1754434164093,-300.0,0.00024699,2]
[377505426,1754434168157,-181.99045273,0.00024643,2]
[377505427,1754434168181,-13.15014096,0.00024699,2]
[377505428,1754434171950,-161.66704392,0.00024699,2]
[377505429,1754434175221,-303.04462544,0.00024699,2]
[377505430,1754434177531,-264.1580105,0.00024699,2]
[377505431,1754434179275,-268.4535288,0.00024699,2]
[377505432,1754434184256,-176.87335964,0.00024699,2]
[377505433,1754434223946,170.46899337,0.00024,2]
[377505434,1754434226287,344.45985176,0.00022897,2]
[377505435,1754434226311,84.85508124,0.00022897,2]
[377505458,1754434231939,-3764.88295682,0.00024699,2]
[377505460,1754434231950,-300.0,0.00024742,2]
[377505462,1754434231960,-300.0,0.00024742,2]
[377505464,1754434231970,-24900.0,0.00024743,2]
[377505466,1754434231979,-1002.4431412,0.00024743,2]
[377505468,1754434231989,-3074.95010039,0.00024997,2]
[377505470,1754434232001,-2941.17192824,0.00024997,2]
[377505472,1754434232011,-361.6029063,0.00025002,2]
[377505474,1754434232020,-1980.51332317,0.0002514,2]
[377505477,1754434232037,-8019.48667683,0.0002514,2]
[377505480,1754434232046,-220.78141432,0.0002514,2]
[377505485,1754434232061,-819.06255642,0.0002514,2]
[377505993,1754434237965,-1139.0999999,0.0002514,2]
[377505994,1754434237978,-891.4388863,0.0002514,2]
[377505995,1754434237987,-672.74319,0.00025153,2]
[377505996,1754434237996,-421.03051736,0.00025224,2]
[377505997,1754434238005,-150.0,0.00025229,2]
[377505998,1754434238014,-257.854238,0.00025273,2]
[377505999,1754434238023,-315.7812952,0.00025369,2]
[377506000,1754434238032,-255.4957077,0.00025782,2]
[377506001,1754434238041,-199.9766975,0.00025805,2]
[377506002,1754434238051,-1000.0,0.00026004,2]
[377506003,1754434238060,-288.904507,0.00026676,2]
[377506004,1754434238069,-325.0,0.00026752,3]
[377506005,1754434238078,-325.0,0.00026752,3]
[377506006,1754434238088,-420.0,0.00026811,2]
[377506007,1754434238097,-394.08619304,0.00027019,2]
[377506008,1754434238106,-325.0,0.00027082,3]
[377506009,1754434238115,-325.0,0.00027082,3]
[377506010,1754434238124,-325.0,0.00027082,3]
[377506011,1754434238133,-325.0,0.00027082,3]
[377506012,1754434238143,-325.0,0.00027082,3]
[377506013,1754434238152,-325.0,0.00027082,3]
[377506014,1754434238161,-325.0,0.00027082,3]
[377506015,1754434238170,-325.0,0.00027082,3]
[377506016,1754434238179,-325.0,0.00027082,3]
[377506017,1754434238188,-325.0,0.00027082,3]
[377506018,1754434238197,-325.0,0.00027082,3]
[377506019,1754434238206,-325.0,0.00027082,3]
[377506020,1754434238215,-325.0,0.00027082,3]
[377506021,1754434238224,-325.0,0.00027082,3]
[377506022,1754434238233,-325.0,0.00027082,3]
[377506023,1754434238243,-325.0,0.00027082,3]
[377506024,1754434238252,-325.0,0.00027082,3]
[377506025,1754434238262,-325.0,0.00027082,3]
[377506026,1754434238271,-325.0,0.00027082,3]
[377506027,1754434238280,-325.0,0.00027082,3]
[377506028,1754434238289,-325.0,0.00027082,3]
[377506029,1754434238298,-325.0,0.00027082,3]
[377506031,1754434238307,-325.0,0.00027082,3]
[377506033,1754434238316,-325.0,0.00027082,3]
[377506034,1754434238330,-325.0,0.00027082,3]
[377506037,1754434238339,-325.0,0.00027082,3]
[377506040,1754434238348,-325.0,0.00027082,3]
[377506042,1754434238357,-325.0,0.00027082,3]
[377506045,1754434238366,-325.0,0.00027082,3]
[377506048,1754434238376,-325.0,0.00027082,3]
[377506050,1754434238385,-458.89140583,0.00027082,3]
[377506053,1754434238394,-160.0,0.00027082,3]
[377506056,1754434238404,-160.0,0.00027082,3]
[377506059,1754434238414,-216.4206905,0.00027082,3]
[377506062,1754434238423,-231.72586818,0.00027082,3]
[377506065,1754434238433,-160.0,0.00027082,3]
[377506067,1754434238442,-160.0,0.00027082,3]
[377506069,1754434238452,-160.0,0.00027082,3]
[377506071,1754434238462,-150.897202,0.00027087,3]
[377506073,1754434238471,-200.0,0.00027216,15]
[377506075,1754434238481,-300.0,0.00027216,15]
[377506077,1754434238490,-500.0,0.00027373,2]
[377506079,1754434238498,-502.28552133,0.00027373,2]
[377506081,1754434238508,-160.0,0.00027383,2]
[377506083,1754434238517,-168.39,0.00027387,10]
[377506085,1754434238527,-841.99,0.00027387,10]
[377506087,1754434238536,-460.0,0.00027397,2]
[377506088,1754434238545,-327.68378311,0.00027397,2]
[377506089,1754434238553,-460.0,0.00027397,2]
[377506090,1754434238562,-460.0,0.00027397,2]
[377506091,1754434238572,-367.74172098,0.00027397,2]
[377506092,1754434238588,-92.25827902,0.00027397,2]
[377506093,1754434238598,-433.31143127,0.00027397,2]
[377506094,1754434238607,-460.0,0.00027397,2]
[377506095,1754434238617,-460.0,0.00027397,2]
[377506096,1754434238626,-168.60270148,0.00027397,2]
[377506097,1754434238635,-500.68735888,0.00027397,2]
[377506098,1754434238644,-461.72150314,0.00027397,2]
[377506099,1754434238654,-460.0,0.00027397,2]
[377506100,1754434238663,-460.0,0.00027397,2]
[377506101,1754434238672,-460.0,0.00027397,2]
[377506102,1754434238681,-460.0,0.00027397,2]
[377506103,1754434238690,-460.0,0.00027397,2]
[377506104,1754434238699,-460.0,0.00027397,2]
[377506105,1754434238709,-460.0,0.00027397,2]
[377506106,1754434238718,-460.0,0.00027397,2]
[377506107,1754434238727,-460.0,0.00027397,2]
[377506108,1754434238736,-460.0,0.00027397,2]
[377506109,1754434238746,-460.0,0.00027397,2]
[377506110,1754434238755,-172.98268289,0.00027397,2]
[377506111,1754434238764,-460.0,0.00027397,2]
[377506112,1754434238774,-460.0,0.00027397,2]
[377506113,1754434238783,-379.90247297,0.00027397,2]
[377506114,1754434238792,-441.08510287,0.00027397,2]
[377506115,1754434238802,-461.36939889,0.00027397,2]
[377506116,1754434238811,-460.0,0.00027397,2]
[377506117,1754434238823,-460.0,0.00027397,2]
[377506118,1754434238832,-460.0,0.00027397,2]
[377506119,1754434238841,-461.44965628,0.00027397,2]
[377506120,1754434238851,-466.53456525,0.00027397,2]
[377506121,1754434238860,-460.0,0.00027397,2]
[377506122,1754434238870,-460.0,0.00027397,2]
[377506123,1754434238879,-4437.95,0.00027397,2]
[377506124,1754434238888,-460.0,0.00027397,2]
[377506125,1754434238898,-460.0,0.00027397,2]
[377506126,1754434238908,-460.0,0.00027397,2]
[377506127,1754434238918,-460.0,0.00027397,2]
[377506128,1754434238928,-460.0,0.00027397,2]
[377506129,1754434238939,-460.0,0.00027397,2]
[377506130,1754434238949,-460.0,0.00027397,2]
[377506131,1754434238959,-460.0,0.00027397,2]
[377506132,1754434238968,-460.0,0.00027397,2]
[377506133,1754434238978,-460.0,0.00027397,2]
[377506134,1754434238987,-460.0,0.00027397,2]
[377506135,1754434238997,-460.0,0.00027397,2]
[377506136,1754434239006,-460.0,0.00027397,2]
[377506137,1754434239016,-460.0,0.00027397,2]
[377506138,1754434239025,-460.0,0.00027397,2]
[377506139,1754434239034,-460.0,0.00027397,2]
[377506140,1754434239043,-460.0,0.00027397,2]
[377506141,1754434239052,-460.0,0.00027397,2]
[377506142,1754434239062,-679.28,0.00027397,2]
[377506143,1754434239071,-254.69678522,0.00027397,2]
[377506144,1754434239080,-1358.46,0.00027397,2]
[377506145,1754434239089,-460.0,0.00027397,2]
[377506146,1754434239100,-460.0,0.00027397,2]
[377506147,1754434239109,-1225.83,0.00027397,2]
[377506148,1754434239118,-460.0,0.00027397,2]
[377506149,1754434239128,-460.0,0.00027397,2]
[377506150,1754434239138,-460.0,0.00027397,2]
[377506151,1754434239147,-460.0,0.00027397,2]
[377506152,1754434239156,-460.0,0.00027397,2]
[377506153,1754434239166,-460.0,0.00027397,2]
[377506154,1754434239175,-460.0,0.00027397,2]
[377506155,1754434239185,-460.0,0.00027397,2]
[377506156,1754434239194,-460.0,0.00027397,2]
[377506157,1754434239204,-460.0,0.00027397,2]
[377506158,1754434239213,-460.0,0.00027397,2]
[377506159,1754434239223,-460.0,0.00027397,2]
[377506160,1754434239232,-460.0,0.00027397,2]
[377506161,1754434239242,-4024.09,0.00027397,2]
[377506162,1754434239251,-469.47556966,0.00027397,2]
[377506163,1754434239260,-460.0,0.00027397,2]
[377506164,1754434239270,-1402.42,0.00027397,2]
[377506165,1754434239279,-460.0,0.00027397,2]
[377506166,1754434239289,-460.0,0.00027397,2]
[377506168,1754434239298,-460.0,0.00027397,2]
[377506173,1754434239480,-460.0,0.00027397,2]
[377506174,1754434239491,-460.0,0.00027397,2]
[377506175,1754434239500,-460.0,0.00027397,2]
[377506176,1754434239510,-460.0,0.00027397,2]
[377506177,1754434239520,-460.0,0.00027397,2]
[377506178,1754434239529,-728.61,0.00027397,2]
[377506179,1754434239538,-460.0,0.00027397,2]
[377506180,1754434239548,-460.0,0.00027397,2]
[377506181,1754434239557,-460.0,0.00027397,2]
[377506182,1754434239567,-460.0,0.00027397,2]
[377506183,1754434239576,-460.0,0.00027397,2]
[377506184,1754434239585,-537.48175218,0.00027397,2]
[377506185,1754434239595,-460.0,0.00027397,2]
[377506186,1754434239604,-460.0,0.00027397,2]
[377506187,1754434239614,-460.0,0.00027397,2]
[377506188,1754434239623,-460.0,0.00027397,2]
[377506189,1754434239633,-464.55059867,0.00027397,2]
[377506190,1754434239643,-460.0,0.00027397,2]
[377506191,1754434239652,-460.0,0.00027397,2]
[377506192,1754434239661,-460.0,0.00027397,2]
[377506193,1754434239671,-1245.15,0.00027397,2]
[377506194,1754434239680,-460.0,0.00027397,2]
[377506195,1754434239689,-460.0,0.00027397,2]
[377506196,1754434239700,-460.0,0.00027397,2]
[377506197,1754434239709,-460.0,0.00027397,2]
[377506198,1754434239719,-460.0,0.00027397,2]
[377506199,1754434239728,-460.0,0.00027397,2]
[377506200,1754434239737,-460.0,0.00027397,2]
[377506201,1754434239747,-460.0,0.00027397,2]
[377506202,1754434239756,-460.0,0.00027397,2]
[377506203,1754434239766,-460.0,0.00027397,2]
[377506204,1754434239775,-460.0,0.00027397,2]
[377506205,1754434239784,-460.0,0.00027397,2]
[377506206,1754434239793,-460.0,0.00027397,2]
[377506207,1754434239803,-460.0,0.00027397,2]
[377506208,1754434239812,-460.0,0.00027397,2]
[377506209,1754434239822,-460.0,0.00027397,2]
[377506210,1754434239831,-460.0,0.00027397,2]
[377506211,1754434239840,-460.0,0.00027397,2]
[377506212,1754434239850,-601.23593282,0.00027397,2]
[377506213,1754434239860,-1020.64,0.00027397,2]
[377506214,1754434239869,-460.0,0.00027397,2]
[377506215,1754434239879,-460.0,0.00027397,2]
[377506216,1754434239889,-460.0,0.00027397,2]
[377506217,1754434239898,-460.0,0.00027397,2]
[377506218,1754434239908,-460.0,0.00027397,2]
[377506219,1754434239918,-460.0,0.00027397,2]
[377506220,1754434239928,-474.83873854,0.00027397,2]
[377506221,1754434239939,-460.0,0.00027397,2]
[377506222,1754434239948,-460.0,0.00027397,2]
[377506223,1754434239958,-471.69368372,0.00027397,2]
[377506225,1754434239968,-380.94374182,0.00027397,2]
[377506226,1754434239977,-825.96,0.00027397,2]
[377506227,1754434239987,-460.0,0.00027397,2]
[377506228,1754434239997,-639.84,0.00027397,2]
[377506229,1754434240006,-460.0,0.00027397,2]
[377506230,1754434240015,-460.0,0.00027397,2]
[377506231,1754434240024,-460.0,0.00027397,2]
[377506232,1754434240033,-460.0,0.00027397,2]
[377506233,1754434240043,-460.0,0.00027397,2]
[377506234,1754434240052,-460.0,0.00027397,2]
[377506235,1754434240062,-1121.45,0.00027397,2]
[377506236,1754434240071,-460.0,0.00027397,2]
[377506237,1754434240080,-460.0,0.00027397,2]
[377506238,1754434240090,-460.0,0.00027397,2]
[377506239,1754434240100,-500.0,0.00027397,2]
[377506240,1754434240111,-1493.16,0.00027397,2]
[377506241,1754434240121,-460.0,0.00027397,2]
[377506242,1754434240131,-1941.59,0.00027397,2]
[377506243,1754434240140,-460.0,0.00027397,2]
[377506244,1754434240149,-460.0,0.00027397,2]
[377506245,1754434240158,-460.0,0.00027397,2]
[377506246,1754434240168,-460.0,0.00027397,2]
[377506247,1754434240178,-460.0,0.00027397,2]